bitfinex-derivatives/quotes_BNBF0:USTF0_20250112
["timestamp","ask_amount","ask_price","bid_price","bid_amount"]
[1736721539709,1.07410426,692.15,691.24,0.2893351]
[1736721539911,0.26571047,692.14,691.24,0.2893351]
[1736721540304,0.26571047,692.13,691.24,0.2893351]
[1736721540507,0.26571047,692.12,691.24,0.2893351]
[1736721540804,1.07410426,692.16,691.24,0.2893351]
[1736721541006,0.26571054,692.15,691.24,0.2893351]
[1736721541409,0.26570763,692.14,691.24,0.2893351]
[1736721541610,0.26570763,692.13,691.24,0.2893351]
[1736721541802,0.26570763,692.12,691.24,0.2893351]
[1736721542006,1.07410426,692.16,691.24,0.2893351]
[1736721542208,0.26570975,692.15,691.24,0.2893351]
[1736721542607,0.26570975,692.14,691.24,0.2893351]
[1736721542804,0.26570975,692.13,691.24,0.2893351]
[1736721543008,0.26570975,692.12,691.24,0.2893351]
[1736721543206,1.07410426,692.16,691.24,0.2893351]
[1736721543404,0.26571085,692.15,691.24,0.2893351]
[1736721543812,1.07410426,692.14,691.24,0.2893351]
[1736721544012,0.26571085,692.13,691.24,0.2893351]
[1736721545305,0.26571033,692.12,691.24,0.2893351]
[1736721545510,0.26571033,692.11,691.24,0.2893351]
[1736721545712,0.26571033,692.1,691.24,0.2893351]
[1736721545910,1.07410426,692.14,691.24,0.2893351]
[1736721546108,0.26571033,692.13,691.24,0.2893351]
[1736721548009,0.26571116,692.12,691.24,0.2893351]
[1736721548212,0.26571116,692.11,691.24,0.2893351]
[1736721548415,0.26571116,692.1,691.24,0.2893351]
[1736721548710,1.36295046,692.41,691.24,0.2893351]
[1736721548711,1.07410426,692.13,691.24,0.2893351]
[1736721549012,0.26571239,692.12,691.24,0.2893351]
[1736721549513,1.33981665,692.12,691.24,0.2893351]
[1736721549714,0.26571239,692.11,691.24,0.2893351]
[1736721550111,1.07410426,692.12,691.24,0.2893351]
[1736721550917,1.07410426,692.13,691.24,0.2893351]
[1736721551113,0.26570235,692.12,691.24,0.2893351]
[1736721552014,1.07410426,692.11,691.24,0.2893351]
[1736721554621,1.07410426,692.13,691.24,0.2893351]
[1736721555217,1.07410426,692.11,691.24,0.2893351]
[1736721556023,1.07410426,692.09,691.24,0.2893351]
[1736721557020,1.07410426,692.08,691.24,0.2893351]
[1736721561217,1.07410426,692.12,691.24,0.2893351]
[1736721562620,1.07410426,692.13,691.24,0.2893351]
[1736721563222,1.07410426,692.14,691.24,0.2893351]
[1736721564722,1.07410426,692.15,691.24,0.2893351]
[1736721566721,1.07410426,692.16,691.24,0.2893351]
[1736721567923,1.07410426,692.24,691.24,0.2893351]
[1736721568925,1.07410426,692.26,691.24,0.2893351]
[1736721569526,0.28885037,692.4,691.24,0.2893351]
[1736721569527,1.07410426,692.25,691.24,0.2893351]
[1736721570923,1.07410426,692.26,691.24,0.2893351]
[1736721573229,1.07410426,692.39,691.24,0.2893351]
[1736721574330,1.07410426,692.34,691.24,0.2893351]
[1736721575628,1.07410426,692.33,691.24,0.2893351]
[1736721575824,1.07410426,692.33,690.18,1.29896068]
[1736721576023,0.28888375,692.32,690.28,0.28973749]
[1736721576730,1.36298801,692.32,690.28,0.28973749]
[1736721577729,1.07410426,692.28,690.28,0.28973749]
[1736721578627,1.07410426,692.28,690.28,3.14955669]
[1736721578828,1.07410426,692.29,690.28,3.14955669]
[1736721579029,1.36300053,692.29,690.28,3.14955669]
[1736721579635,1.07410426,692.28,690.29,1.29896068]
[1736721579934,1.07410426,692.28,690.31,0.2897249]
[1736721580432,1.07410426,692.28,690.31,3.30319148]
[1736721580633,1.07410426,692.28,690.32,2.8598192]
[1736721580933,1.07410426,692.28,690.34,0.28971231]
[1736721581434,1.07410426,692.27,690.34,0.28971231]
[1736721582233,0.26571896,692.26,690.34,0.28971231]
[1736721582635,1.33982322,692.26,690.34,1.39742378]
[1736721582834,0.26571896,692.25,690.34,3.14953151]
[1736721583633,1.07410426,692.1,690.73,1.29896068]
[1736721583840,0.2657217,692.09,690.73,1.29896068]
[1736721584337,0.2657217,692.09,690.74,0.28954454]
[1736721584538,0.2657217,692.09,690.74,1.58850522]
[1736721585439,0.2657217,692.09,690.74,0.28954454]
[1736721585938,0.2657217,692.09,690.74,3.14936374]
[1736721586237,0.2657217,692.09,690.74,6.16283032]
[1736721586238,1.33982596,692.09,690.74,6.16283032]
[1736721586434,0.26572836,692.08,690.75,2.8598192]
[1736721586639,0.26572836,692.08,690.76,0.28953616]
[1736721587240,0.26572836,692.08,690.76,3.30300274]
[1736721587434,0.26572836,692.07,690.77,2.8598192]
[1736721587638,0.26572836,692.06,690.77,2.8598192]
[1736721587838,1.07410426,692.1,690.78,0.28952778]
[1736721588033,0.26572716,692.09,690.78,0.28952778]
[1736721588941,0.26572716,692.09,690.78,3.30299436]
[1736721589140,1.07410426,692.11,690.79,2.8598192]
[1736721589334,0.26572415,692.1,690.8,0.28951939]
[1736721590439,0.26572415,692.09,690.8,0.28951939]
[1736721590641,0.26572415,692.08,690.8,3.30298597]
[1736721590836,1.07410426,692.12,690.8,3.30298597]
[1736721590837,0.26572415,692.07,690.81,2.8598192]
[1736721591040,0.26572415,692.06,690.81,2.8598192]
[1736721591240,1.07410426,692.12,690.82,0.28951101]
[1736721591436,0.26572533,692.11,690.82,0.28951101]
[1736721591642,1.07410426,692.1,690.82,0.28951101]
[1736721591844,0.26572533,692.09,690.82,0.28951101]
[1736721592142,0.26572533,692.09,690.82,3.30297759]
[1736721592343,0.26572533,692.09,690.83,3.14932602]
[1736721592647,0.26572533,692.09,690.84,0.28950263]
[1736721592846,0.26572533,692.08,690.84,0.28950263]
[1736721593143,0.26572533,692.07,690.84,0.28950263]
[1736721593343,0.26572533,692.06,690.84,3.30296921]
[1736721593543,1.07410426,692.11,690.85,2.8598192]
[1736721593744,0.2657234,692.1,690.85,2.8598192]
[1736721594447,0.2657234,692.1,690.86,0.28949425]
[1736721594640,0.2657234,692.1,690.86,3.30296083]
[1736721594842,0.2657243,692.09,690.87,2.8598192]
[1736721595042,0.2657243,692.08,690.87,3.14930926]
[1736721595243,0.2657243,692.07,690.87,3.14930926]
[1736721595444,0.2657243,692.06,690.87,3.14930926]
[1736721595641,1.07410426,692.11,690.87,3.14930926]
[1736721595844,0.26572485,692.1,690.87,3.14930926]
[1736721596448,0.26572485,692.1,690.88,3.01346658]
[1736721596748,0.26572485,692.1,690.89,1.75210773]
[1736721597349,0.26572485,692.1,690.89,2.85890151]
[1736721597649,0.26572351,692.09,690.89,1.75210773]
[1736721597850,0.26572351,692.08,690.89,1.75210773]
[1736721598045,0.26572351,692.07,690.89,1.75210773]
[1736721598251,1.07410426,692.11,690.89,1.75210773]
[1736721598450,0.2657237,692.1,690.89,1.75210773]
[1736721598650,0.2657237,692.1,690.87,0.28949006]
[1736721600252,1.07410426,692.11,690.87,0.28949006]
[1736721601255,1.07410426,692.22,690.87,0.28949006]
[1736721602051,0.28889627,692.29,690.87,0.28949006]
[1736721607158,1.07410426,692.28,690.87,0.28949006]
[1736721608057,1.07410426,692.25,690.87,0.28949006]
[1736721610161,0.28891713,692.24,690.87,0.28949006]
[1736721610552,1.07410426,692.17,690.87,0.28949006]
[1736721610956,0.26574054,692.16,690.87,0.28949006]
[1736721611357,1.07410426,692.03,690.87,0.28949006]
[1736721611952,0.26575436,692.02,690.87,0.28949006]
[1736721612154,0.26577294,692.01,690.87,0.28949006]
[1736721612359,0.26577294,692.0,690.87,0.28949006]
[1736721612660,0.26577542,691.99,690.87,0.28949006]
[1736721612860,1.07410426,692.0,690.87,0.28949006]
[1736721613460,1.07410426,691.95,690.87,0.28949006]
[1736721614361,1.07410426,691.97,690.87,0.28949006]
[1736721615357,1.07410426,691.96,690.87,0.28949006]
[1736721616059,1.07410426,691.98,690.87,0.28949006]
[1736721617054,0.26578155,691.97,690.87,0.28949006]
[1736721617460,1.07410426,691.99,690.87,0.28949006]
[1736721617657,0.26578255,691.98,690.87,0.28949006]
[1736721618660,1.07410426,691.99,690.87,0.28949006]
[1736721618862,0.26578322,691.98,690.87,0.28949006]
[1736721619762,0.26578322,691.97,690.87,0.28949006]
[1736721620064,0.26578322,691.96,690.87,0.28949006]
[1736721620365,0.26578322,691.95,690.87,0.28949006]
[1736721620563,0.26578322,691.94,690.87,0.28949006]
[1736721620756,0.26579004,691.93,690.87,0.28949006]
[1736721620961,0.26579004,691.92,690.87,0.28949006]
[1736721621162,0.26579004,691.91,690.87,0.28949006]
[1736721621464,1.07410426,691.99,690.87,0.28949006]
[1736721621666,1.07410426,691.97,690.87,0.28949006]
[1736721621959,0.26584327,691.96,690.87,0.28949006]
[1736721622362,0.26585629,691.95,690.43,1.29896068]
[1736721622562,0.26585629,691.94,690.44,0.28967035]
[1736721622762,1.51032926,692.03,690.44,0.28967035]
[1736721622763,1.07410426,691.99,690.44,0.28967035]
[1736721622963,0.26585886,691.98,690.44,0.28967035]
[1736721623663,0.26585886,691.97,690.44,0.28967035]
[1736721623865,0.26585886,691.96,690.44,0.28967035]
[1736721624058,0.26590986,691.95,690.44,0.28967035]
[1736721624263,0.26590986,691.94,690.44,0.28967035]
[1736721624462,0.26590986,691.93,690.44,0.28967035]
[1736721624659,0.26590986,691.92,690.44,0.28967035]
[1736721624862,1.07410426,691.77,690.44,0.28967035]
[1736721625166,0.26590986,691.76,690.44,0.28967035]
[1736721625868,0.26590986,691.75,690.44,0.28967035]
[1736721626061,0.26590986,691.74,690.44,0.28967035]
[1736721626265,0.26590986,691.73,690.44,0.28967035]
[1736721626466,1.07410426,691.87,690.44,0.28967035]
[1736721626665,0.26594591,691.86,690.44,0.28967035]
[1736721626860,0.26594591,691.85,690.44,0.28967035]
[1736721627067,0.26594591,691.84,690.44,0.28967035]
[1736721627264,0.26594591,691.83,690.44,0.28967035]
[1736721627460,0.26594591,691.82,690.44,0.28967035]
[1736721627666,0.26594591,691.81,690.44,0.28967035]
[1736721627862,0.26594591,691.8,690.44,0.28967035]
[1736721628061,0.26594591,691.79,690.44,0.28967035]
[1736721628265,2.58443352,692.03,690.44,0.28967035]
[1736721628266,0.55505516,691.78,690.44,0.28967035]
[1736721628466,0.26594591,691.77,690.44,0.28967035]
[1736721628662,0.26594591,691.76,690.44,0.28967035]
[1736721628862,0.26594591,691.75,690.44,0.28967035]
[1736721629065,0.26594591,691.74,690.44,0.28967035]
[1736721629261,0.26598118,691.73,690.44,0.28967035]
[1736721629569,0.26598118,691.72,690.44,0.28967035]
[1736721629869,0.26598118,691.71,690.44,0.28967035]
[1736721630168,0.26597988,691.7,690.44,0.28967035]
[1736721630363,0.55512675,691.69,690.44,0.28967035]
[1736721630665,0.55513093,691.68,690.44,0.28967035]
[1736721630868,0.55513511,691.67,690.44,0.28967035]
[1736721631168,0.55513929,691.66,690.44,0.28967035]
[1736721631464,0.55514347,691.65,690.44,0.28967035]
[1736721631665,0.26597988,691.64,690.44,0.28967035]
[1736721632264,0.26597988,691.63,690.44,0.28967035]
[1736721632468,0.26597988,691.62,690.44,0.28967035]
[1736721632664,0.26597988,691.61,690.44,0.28967035]
[1736721632867,0.55516437,691.6,690.44,0.28967035]
[1736721633066,0.55516856,691.59,690.44,0.28967035]
[1736721633266,0.26597988,691.58,690.44,0.28967035]
[1736721633464,0.26597988,691.57,690.44,0.28967035]
[1736721633665,0.26597988,691.56,690.44,0.28967035]
[1736721633865,0.26597988,691.55,690.44,0.28967035]
[1736721634164,0.26597988,691.54,690.44,0.28967035]
[1736721634371,0.26597988,691.53,690.44,0.28967035]
[1736721634565,0.26597988,691.52,690.44,0.28967035]
[1736721634771,0.26597988,691.51,690.44,0.28967035]
[1736721634972,0.26597988,691.5,690.44,0.28967035]
[1736721635165,0.26597988,691.49,690.44,0.28967035]
[1736721635365,0.26597988,691.48,690.44,0.28967035]
[1736721635568,0.28918868,691.59,690.44,0.28967035]
[1736721635569,0.26597988,691.47,690.44,0.28967035]
[1736721635769,0.26597988,691.46,690.44,0.28967035]
[1736721635971,0.26597988,691.45,690.44,0.28967035]
[1736721636170,0.26597988,691.44,690.44,0.28967035]
[1736721636368,0.26597988,691.43,690.44,0.28967035]
[1736721636570,0.26597988,691.42,690.44,0.28967035]
[1736721636766,0.26597988,691.41,690.44,0.28967035]
[1736721636972,0.26597988,691.4,690.44,0.28967035]
[1736721637172,0.26597988,691.39,690.44,0.28967035]
[1736721637473,0.26597856,691.38,690.44,0.28967035]
[1736721637673,0.26597856,691.37,690.44,0.28967035]
[1736721637974,0.26597856,691.36,690.44,0.28967035]
[1736721638168,0.26597856,691.35,690.44,0.28967035]
[1736721638372,0.26597856,691.34,690.44,0.28967035]
[1736721638572,0.26597856,691.33,690.44,0.28967035]
[1736721638771,0.26597856,691.32,690.44,0.28967035]
[1736721638972,0.26597856,691.31,690.44,0.28967035]
[1736721639170,0.26597856,691.3,690.44,0.28967035]
[1736721639370,0.26597856,691.29,690.44,0.28967035]
[1736721639569,0.26597856,691.28,690.44,0.28967035]
[1736721639770,0.26597856,691.27,690.44,0.28967035]
[1736721639974,0.26597856,691.26,690.44,0.28967035]
[1736721640275,0.28918868,691.59,690.44,0.28967035]
[1736721640476,0.26602017,691.58,690.44,0.28967035]
[1736721640676,0.26602017,691.57,690.44,0.28967035]
[1736721640871,0.26602017,691.56,690.44,0.28967035]
[1736721641072,0.26602017,691.55,690.44,0.28967035]
[1736721641270,0.26602017,691.54,690.44,0.28967035]
[1736721641469,0.26602017,691.53,690.44,0.28967035]
[1736721641673,0.26602017,691.52,690.44,0.28967035]
[1736721641872,0.26602017,691.51,690.44,0.28967035]
[1736721642075,0.26602017,691.5,689.46,3.00077751]
[1736721642270,0.26602017,691.49,689.48,0.29007367]
[1736721642471,0.26602017,691.48,689.48,0.29007367]
[1736721642670,0.26602017,691.47,689.48,0.29007367]
[1736721642972,0.26607545,691.46,689.48,0.29007367]
[1736721643177,0.26607545,691.45,689.48,0.29007367]
[1736721643374,0.26607545,691.44,689.48,0.29007367]
[1736721643570,0.26607545,691.43,689.48,0.29007367]
[1736721643771,0.26607545,691.42,689.48,0.29007367]
[1736721643975,1.51186576,691.5,689.48,0.29007367]
[1736721643976,0.26607545,691.41,689.48,0.29007367]
[1736721644178,0.26607545,691.4,689.48,0.29007367]
[1736721644377,0.26607545,691.39,689.48,0.29007367]
[1736721644573,1.51186576,691.5,689.48,0.29007367]
[1736721644574,0.26607545,691.38,689.48,0.29007367]
[1736721644778,0.26607545,691.37,689.48,0.29007367]
[1736721644978,0.26607545,691.36,689.48,0.29007367]
[1736721645179,0.26607545,691.35,689.48,0.29007367]
[1736721645373,0.26607545,691.34,689.48,0.29007367]
[1736721645574,0.26608573,691.33,689.48,0.29007367]
[1736721645778,0.26608573,691.32,689.48,0.29007367]
[1736721645978,0.26608573,691.31,689.48,0.29007367]
[1736721646180,0.26608573,691.3,689.48,0.29007367]
[1736721646374,1.51186576,691.5,689.48,0.29007367]
[1736721646375,0.26608573,691.29,689.48,0.29007367]
[1736721646583,1.51186576,691.5,689.48,0.29007367]
[1736721646584,0.26608573,691.28,689.48,0.29007367]
[1736721646878,0.26608573,691.27,689.48,0.29007367]
[1736721647078,0.26608573,691.26,689.48,0.29007367]
[1736721647279,0.26608573,691.25,689.48,0.29007367]
[1736721647473,0.26608573,691.24,689.48,0.29007367]
[1736721647680,0.26608573,691.23,689.48,0.29007367]
[1736721647877,1.07410426,691.49,689.48,0.29007367]
[1736721647878,0.26608573,691.22,689.48,0.29007367]
[1736721648079,0.26608573,691.21,689.48,0.29007367]
[1736721648281,1.07410426,691.49,689.48,0.29007367]
[1736721648484,0.26610836,691.48,689.48,0.29007367]
[1736721648680,1.07410426,691.45,689.48,0.29007367]
[1736721648984,0.26610836,691.44,689.48,0.29007367]
[1736721649185,0.26610836,691.43,689.48,0.29007367]
[1736721649381,0.26610836,691.42,689.48,0.29007367]
[1736721649580,0.26610836,691.41,689.48,0.29007367]
[1736721649780,0.26610836,691.4,689.48,0.29007367]
[1736721649985,0.26610836,691.39,689.48,0.29007367]
[1736721650185,0.26610836,691.38,689.48,0.29007367]
[1736721650384,0.26610836,691.37,689.48,0.29007367]
[1736721650685,0.26610836,691.36,689.48,0.29007367]
[1736721650885,0.26610836,691.35,689.48,0.29007367]
[1736721651083,0.26610836,691.34,689.48,0.29007367]
[1736721651280,0.26610836,691.33,689.48,0.29007367]
[1736721651485,0.26610836,691.32,689.48,0.29007367]
[1736721651680,0.26610836,691.31,689.48,0.29007367]
[1736721651887,0.26610836,691.3,689.48,0.29007367]
[1736721652081,0.26610836,691.29,689.48,0.29007367]
[1736721652281,0.26610836,691.28,689.48,0.29007367]
[1736721652487,0.26610836,691.27,689.48,0.29007367]
[1736721652686,0.26610836,691.26,689.48,0.29007367]
[1736721652887,0.26610836,691.25,689.48,0.29007367]
[1736721653188,1.51246808,691.27,689.48,0.29007367]
[1736721653189,0.26610836,691.24,689.48,0.29007367]
[1736721653489,0.26610836,691.23,689.48,0.29007367]
[1736721653787,0.26615591,691.22,689.48,0.29007367]
[1736721653987,0.26615591,691.21,689.48,0.29007367]
[1736721654188,0.26615591,691.2,689.48,0.29007367]
[1736721654381,0.26615591,691.19,689.48,0.29007367]
[1736721654584,0.26615591,691.18,689.48,0.29007367]
[1736721654783,0.26615591,691.17,689.48,0.29007367]
[1736721654982,0.26615591,691.16,689.48,0.29007367]
[1736721655182,0.26615591,691.15,689.48,0.29007367]
[1736721655383,0.26615591,691.14,689.48,0.29007367]
[1736721655683,0.55553706,691.13,689.48,0.29007367]
[1736721655887,0.26615591,691.12,689.48,0.29007367]
[1736721656082,0.55554544,691.11,689.48,0.29007367]
[1736721656286,0.26615591,691.1,689.48,0.29007367]
[1736721656482,0.26615591,691.09,689.48,0.29007367]
[1736721656683,0.26615591,691.08,689.48,0.29007367]
[1736721656886,0.26615591,691.07,689.48,0.29007367]
[1736721657088,0.26615591,691.06,689.48,0.29007367]
[1736721657285,0.26615591,691.05,689.48,0.29007367]
[1736721657490,0.26615591,691.04,689.48,0.29007367]
[1736721657687,0.26615591,691.03,689.48,0.29007367]
[1736721657994,0.26615591,691.02,689.48,0.29007367]
[1736721658295,0.26615591,691.01,689.48,0.29007367]
[1736721658490,0.26615591,691.0,689.48,0.29007367]
[1736721658687,0.26615591,690.99,689.48,0.29007367]
[1736721658891,0.26615591,690.98,689.48,0.29007367]
[1736721659092,0.26615591,690.97,689.48,0.29007367]
[1736721659294,0.26615591,690.96,689.48,0.29007367]
[1736721659493,0.26615591,690.95,689.48,0.29007367]
[1736721659688,0.26615591,690.94,689.48,0.29007367]
[1736721659888,0.26615591,690.93,689.48,0.29007367]
[1736721660092,0.26615591,690.92,689.48,0.29007367]
[1736721660291,0.28938953,691.11,689.48,0.29007367]
[1736721660489,0.26610798,691.1,689.48,0.29007367]
[1736721660793,0.26610798,691.09,689.48,0.29007367]
[1736721661090,0.26610798,691.08,689.48,0.29007367]
[1736721661395,0.26610798,691.07,689.48,0.29007367]
[1736721661595,0.26610798,691.06,689.48,0.29007367]
[1736721661794,0.26610798,691.05,689.48,0.29007367]
[1736721661996,0.26610201,691.04,689.48,0.29007367]
[1736721662294,0.26610201,691.03,689.48,0.29007367]
[1736721662495,0.26610201,691.02,689.48,0.29007367]
[1736721662688,0.26610201,691.01,689.48,0.29007367]
[1736721662891,0.26610201,691.0,689.48,0.29007367]
[1736721663091,0.28938953,691.11,689.48,0.29007367]
[1736721663092,0.26610201,690.99,689.48,0.29007367]
[1736721663295,0.28938953,691.11,689.48,0.29007367]
[1736721663495,0.26610471,691.1,689.48,0.29007367]
[1736721663894,0.26610508,691.09,689.48,0.29007367]
[1736721664089,0.26610508,691.08,689.48,0.29007367]
[1736721664292,0.26610508,691.07,689.48,0.29007367]
[1736721664493,0.26610508,691.06,689.48,0.29007367]
[1736721664690,0.26610508,691.05,689.48,0.29007367]
[1736721664894,0.26610508,691.04,689.48,0.29007367]
[1736721665091,0.26610508,691.03,689.48,0.29007367]
[1736721665296,0.26610508,691.02,689.48,0.29007367]
[1736721665500,0.26610508,691.01,689.48,0.29007367]
[1736721665697,0.28938953,691.11,689.48,0.29007367]
[1736721665899,0.26610791,691.1,689.48,0.29007367]
[1736721666503,0.28938953,691.11,689.48,0.29007367]
[1736721666799,0.26610952,691.1,689.48,0.29007367]
[1736721670100,0.26609586,691.09,689.48,0.29007367]
[1736721670296,0.26609586,691.08,689.48,0.29007367]
[1736721670499,0.28938953,691.11,689.48,0.29007367]
[1736721670801,0.26609469,691.1,689.48,0.29007367]
[1736721671298,0.28938953,691.11,689.48,0.29007367]
[1736721671704,0.26608337,691.1,689.48,0.29007367]
[1736721674506,0.28938953,691.11,689.48,0.29007367]
[1736721677907,0.28938953,691.11,689.52,1.29896068]
[1736721678109,0.28938953,691.11,689.54,0.29004843]
[1736721678905,0.28938953,691.11,689.54,1.58900911]
[1736721679509,0.28938953,691.11,689.54,4.42221231]
[1736721679711,0.28938953,691.11,689.57,1.29896068]
[1736721679909,0.28938953,691.11,689.59,0.2900274]
[1736721680509,0.28938953,691.11,689.6,1.29896068]
[1736721680909,0.28938953,691.11,689.6,4.13307337]
[1736721681108,0.28938953,691.11,689.62,0.29001479]
[1736721681302,0.28938953,691.11,689.62,4.39069717]
[1736721681504,0.28938953,691.11,689.63,2.83482776]
[1736721681707,0.28938953,691.11,689.65,0.29000217]
[1736721682312,0.28938953,691.11,689.65,1.58896285]
[1736721682711,0.28938953,691.11,689.65,4.42379061]
[1736721682904,0.28938953,691.11,689.66,2.83482776]
[1736721683110,0.28938953,691.11,689.68,0.28998956]
[1736721683610,0.28938953,691.11,689.68,1.38989443]
[1736721683806,0.28938953,691.11,689.68,3.12481732]
[1736721684313,0.28938953,691.11,689.7,0.28998115]
[1736721685311,0.28938953,691.11,689.76,1.29896068]
[1736721685515,0.28938953,691.11,689.78,0.28994751]
[1736721686817,1.07410426,691.35,689.78,0.28994751]
[1736721687014,0.26604379,691.34,689.78,0.28994751]
[1736721687517,0.26604379,691.33,689.78,2.0248704]
[1736721687718,1.07410426,691.39,689.78,0.28994751]
[1736721687719,0.26604379,691.32,689.78,0.28994751]
[1736721687919,0.26604379,691.31,689.78,0.28994751]
[1736721688119,0.26604379,691.3,689.78,0.28994751]
[1736721688318,0.26604379,691.29,689.78,0.28994751]
[1736721688523,1.07410426,691.41,689.78,0.28994751]
[1736721688714,0.26603716,691.4,689.78,0.28994751]
[1736721689119,0.26603716,691.4,689.78,3.29072502]
[1736721689316,0.26603716,691.4,689.79,2.83482776]
[1736721689918,0.26603716,691.39,689.81,0.2899349]
[1736721690118,1.07410426,691.47,689.81,0.2899349]
[1736721690320,0.26601411,691.46,689.81,0.2899349]
[1736721691117,0.2660062,691.45,689.81,1.38983977]
[1736721691316,0.2660062,691.44,689.81,3.12476266]
[1736721691515,1.07410426,691.5,689.81,3.12476266]
[1736721691516,0.2660062,691.43,689.81,3.12476266]
[1736721691824,1.51152648,691.59,689.81,3.12476266]
[1736721691825,0.2660062,691.42,689.81,3.12476266]
[1736721692123,1.07410426,691.52,689.82,3.00077751]
[1736721692421,0.26599781,691.51,689.83,2.83482776]
[1736721693021,0.26599781,691.5,689.83,2.83482776]
[1736721693222,1.07410426,691.57,689.85,0.28991809]
[1736721693418,0.26598122,691.56,689.85,0.28991809]
[1736721693623,0.26598122,691.56,689.85,1.38982296]
[1736721693823,0.26598122,691.56,689.85,3.12474585]
[1736721694020,1.07410426,691.6,689.85,3.12474585]
[1736721694021,0.26598122,691.55,689.85,3.12474585]
[1736721694221,0.26598122,691.54,689.85,3.12474585]
[1736721694424,0.26598122,691.53,689.85,3.12474585]
[1736721694724,0.26597992,691.52,689.85,3.12474585]
[1736721694918,0.26597992,691.51,689.85,3.12474585]
[1736721695121,0.26597992,691.5,689.86,3.00077751]
[1736721695325,0.26597992,691.49,689.88,0.28990549]
[1736721695625,1.07410426,691.62,689.88,0.28990549]
[1736721695825,0.26598127,691.61,689.88,0.28990549]
[1736721696225,0.26598127,691.61,689.88,3.290683]
[1736721696420,0.26598127,691.61,689.89,2.83482776]
[1736721696622,1.07410426,691.63,689.89,2.83482776]
[1736721696823,0.26598039,691.62,689.89,2.83482776]
[1736721697920,0.26598039,691.62,689.9,3.00077751]
[1736721698123,0.26598039,691.62,689.91,2.83482776]
[1736721698626,0.26598039,691.61,689.91,2.83482776]
[1736721698925,0.26598039,691.6,689.91,2.83482776]
[1736721699126,0.26598039,691.59,689.91,2.83482776]
[1736721699323,1.07410426,691.6,689.91,2.83482776]
[1736721699520,0.26598628,691.59,689.91,2.83482776]
[1736721699925,0.26598628,691.59,689.92,3.00077751]
[1736721700220,0.28919286,691.58,689.93,2.83482776]
[1736721700426,0.26598628,691.57,689.94,0.28988027]
[1736721700620,0.28920122,691.56,689.94,0.28988027]
[1736721700825,0.26598628,691.55,689.94,0.28988027]
[1736721701120,0.28920959,691.54,689.94,0.28988027]
[1736721701320,0.26598628,691.53,689.94,3.29065778]
[1736721701524,0.28921795,691.52,689.95,1.73492289]
[1736721701725,0.26598628,691.51,689.96,0.28987187]
[1736721701922,0.55520841,691.51,689.96,0.28987187]
[1736721702121,0.28922213,691.51,689.96,0.28987187]
[1736721716237,0.28922213,691.51,689.96,1.58883255]
[1736721716933,0.28922213,691.51,689.96,4.43620691]
[1736721717139,0.28922213,691.51,689.97,4.14633504]
[1736721717333,0.28922213,691.51,689.99,0.28985927]
[1736721718534,0.26594451,691.5,689.99,0.28985927]
[1736721718736,0.28922213,691.51,689.99,0.28985927]
[1736721718933,0.28922213,691.51,689.99,4.58959746]
[1736721719838,0.28922213,691.51,689.99,3.29063678]
[1736721721137,0.28922213,691.51,689.99,0.28985927]
[1736721724939,1.07410426,691.5,689.99,0.28985927]
[1736721725939,1.36333476,691.49,689.99,0.28985927]
[1736721726140,0.28923468,691.48,689.99,0.28985927]
[1736721727148,1.07410426,691.46,689.99,0.28985927]
[1736721728141,1.07410426,691.47,689.99,0.28985927]
[1736721728347,1.36334312,691.47,689.99,0.28985927]
[1736721729947,0.28923886,691.47,689.99,0.28985927]
[1736721730956,0.26599998,691.46,689.99,0.28985927]
[1736721731556,0.26599998,691.45,689.99,0.28985927]
[1736721731757,1.07410426,691.42,689.99,0.28985927]
[1736721731957,0.26599998,691.41,689.99,0.28985927]
[1736721732459,0.26599998,691.41,689.99,1.58881995]
[1736721732460,1.07410426,691.4,689.99,1.58881995]
[1736721733356,1.07410426,691.42,689.99,0.28985927]
[1736721733555,0.26601145,691.41,689.99,0.28985927]
[1736721734259,1.07410426,691.42,689.99,0.28985927]
[1736721735156,0.26600997,691.41,689.99,0.28985927]
[1736721736455,1.07410426,691.43,689.99,0.28985927]
[1736721736656,0.2660105,691.42,689.99,0.28985927]
[1736721737056,1.07410426,691.43,689.99,0.28985927]
[1736721737858,1.07410426,691.46,689.99,0.28985927]
[1736721738056,0.26599746,691.45,689.99,0.28985927]
[1736721738861,1.07410426,691.46,689.99,0.28985927]
[1736721739962,0.28923886,691.47,689.99,0.28985927]
[1736721752473,0.26598084,691.46,689.99,0.28985927]
[1736721752674,1.3400851,691.46,690.04,1.29896068]
[1736721752870,0.26598084,691.45,690.05,0.28983406]
[1736721753372,1.07410426,691.41,690.05,0.28983406]
[1736721755171,1.07410426,691.39,690.05,0.28983406]
[1736721755965,1.07410426,691.39,690.05,3.29061157]
[1736721756166,1.07410426,691.37,690.06,4.15431276]
[1736721756372,1.07410426,691.37,690.07,3.14517774]
[1736721756973,1.07410426,691.4,690.07,3.14517774]
[1736721757174,1.07410426,691.4,690.08,2.85535208]
[1736721757373,1.07410426,691.4,690.09,2.85535208]
[1736721757672,1.07410426,691.4,690.1,0.28981307]
[1736721758969,1.07410426,691.4,690.1,3.29059058]
[1736721759166,1.07410426,691.4,690.11,2.85535208]
[1736721759368,1.07410426,691.4,690.12,0.28980467]
[1736721759673,1.07410426,691.39,690.12,0.28980467]